fUST/lending_fUST_20250302
["ID","MTS","AMOUNT","RATE_DAILY","PERIOD"]
[355086644,1740887502982,-254.410923,0.00028448,7]
[355086646,1740887502991,-633.86,0.00028448,2]
[355086648,1740887503001,-151.0,0.00028448,7]
[355086650,1740887503012,-151.0,0.00028448,7]
[355086652,1740887503021,-500.0,0.00028448,2]
[355086654,1740887503030,-188.38058919,0.00028448,2]
[355086656,1740887503040,-500.0,0.00028448,2]
[355086658,1740887503049,-903.21,0.00028448,2]
[355086660,1740887503059,-151.0,0.0002846,7]
[355086662,1740887503070,-285.543222,0.0002846,7]
[355086664,1740887503079,-500.0,0.00028461,2]
[355086667,1740887503091,-500.0,0.00028461,2]
[355086669,1740887503101,-160.0,0.00028472,5]
[355086671,1740887503112,-500.0,0.00028488,2]
[355086673,1740887503123,-500.0,0.00028516,2]
[355086675,1740887503134,-155.378756,0.00028533,2]
[355086677,1740887503144,-500.0,0.00028543,2]
[355086679,1740887503155,-500.0,0.00028571,2]
[355086681,1740887503165,-962.46020009,0.00028598,2]
[355086683,1740887503176,-576.55,0.00028623,2]
[355086686,1740887503187,-695.94,0.00028625,2]
[355086688,1740887503197,-500.0,0.00028625,2]
[355086690,1740887503208,-638.24,0.00028625,2]
[355086692,1740887503218,-512.29,0.00028625,2]
[355086694,1740887503228,-517.75,0.00028625,2]
[355086696,1740887503238,-555.95,0.00028625,2]
[355086698,1740887503247,-604.17,0.00028625,2]
[355086700,1740887503257,-535.38,0.00028625,2]
[355086702,1740887503266,-644.85,0.00028625,2]
[355086704,1740887503276,-1109.68,0.00028625,2]
[355086706,1740887503286,-500.0,0.00028625,2]
[355086708,1740887503295,-500.0,0.00028627,2]
[355086710,1740887503304,-3938.98,0.00028627,2]
[355086712,1740887503314,-1897.21,0.00028627,2]
[355086714,1740887503323,-814.94,0.00028627,2]
[355086716,1740887503334,-500.0,0.00028627,2]
[355086718,1740887503343,-582.56,0.00028627,2]
[355086720,1740887503353,-500.0,0.00028628,2]
[355086722,1740887503364,-606.5,0.00028628,2]
[355086724,1740887503374,-1398.67,0.00028628,2]
[355086726,1740887503384,-610.78,0.00028628,2]
[355086729,1740887503394,-397.90191416,0.00028628,2]
[355086731,1740887503404,-500.0,0.00028628,2]
[355086733,1740887503414,-500.0,0.00028628,2]
[355086735,1740887503424,-722.78,0.00028628,2]
[355086737,1740887503434,-500.0,0.00028628,2]
[355086739,1740887503444,-1444.05,0.00028628,2]
[355086741,1740887503454,-452.49556513,0.00028628,2]
[355086743,1740887503464,-1058.22,0.00028628,2]
[355086745,1740887503474,-1004.44,0.00028628,2]
[355086747,1740887503483,-482.73944968,0.00028628,2]
[355086749,1740887503494,-151.0,0.00028628,7]
[355086751,1740887503503,-699.97,0.00028628,2]
[355086753,1740887503513,-2209.6,0.00028628,2]
[355086755,1740887503522,-6855.05,0.00028628,2]
[355086757,1740887503532,-933.72,0.00028628,2]
[355086759,1740887503542,-612.38,0.00028628,2]
[355086761,1740887503552,-785.13,0.00028628,2]
[355086763,1740887503561,-829.6,0.00028628,2]
[355086766,1740887503572,-966.52,0.00028628,2]
[355086768,1740887503582,-895.37,0.00028628,2]
[355086770,1740887503592,-6949.16,0.00028628,2]
[355086772,1740887503602,-863.82,0.00028628,2]
[355086774,1740887503617,-4270.14,0.00028628,2]
[355086776,1740887503627,-1135.48,0.00028628,2]
[355086778,1740887503637,-637.67,0.00028628,2]
[355086780,1740887503647,-5348.24,0.00028628,2]
[355086782,1740887503657,-3293.1,0.00028628,2]
[355086784,1740887503666,-4549.77,0.00028628,2]
[355086786,1740887503676,-769.42,0.00028628,2]
[355086788,1740887503687,-500.0,0.00028628,2]
[355086790,1740887503697,-2567.41,0.00028628,2]
[355086792,1740887503707,-1086.26,0.00028628,2]
[355086794,1740887503717,-604.84,0.00028628,2]
[355086796,1740887503727,-7043.4,0.00028628,2]
[355086798,1740887503736,-786.15,0.00028628,2]
[355086800,1740887503746,-390.25567347,0.00028628,2]
[355086802,1740887503756,-1576.77,0.00028628,2]
[355086804,1740887503766,-2514.1,0.00028628,2]
[355086806,1740887503776,-2961.51,0.00028628,2]
[355086808,1740887503787,-5947.3,0.00028628,2]
[355086810,1740887503797,-1198.18,0.00028628,2]
[355086812,1740887503807,-1870.92,0.00028628,2]
[355086814,1740887503818,-1004.96,0.00028628,2]
[355086816,1740887503827,-752.9,0.00028628,2]
[355086818,1740887503838,-90588.84,0.00028629,2]
[355086820,1740887503848,-1608.93,0.00028629,2]
[355086822,1740887503858,-917.51,0.00028629,2]
[355086825,1740887503868,-7853.56,0.00028629,2]
[355086827,1740887503878,-2071.45,0.00028629,2]
[355086829,1740887503888,-500.0,0.00028629,2]
[355086831,1740887503898,-2786.42,0.00028629,2]
[355086833,1740887503907,-584.33,0.00028629,2]
[355086835,1740887503917,-25446.5,0.00028629,2]
[355086837,1740887503927,-726.66,0.00028629,2]
[355086839,1740887503936,-500.0,0.00028721,2]
[355086841,1740887503946,-700.75,0.00028721,2]
[355086843,1740887503956,-509.21,0.00028721,2]
[355086845,1740887503966,-511.51,0.00028721,2]
[355086847,1740887503976,-545.25,0.00028721,2]
[355086849,1740887503987,-984.68,0.00028721,2]
[355086851,1740887503996,-500.0,0.00028721,2]
[355086853,1740887504007,-500.0,0.00028721,2]
[355086855,1740887504017,-151.0,0.00028721,7]
[355086858,1740887504027,-532.97,0.00028721,2]
[355086860,1740887504038,-151.0,0.00028721,7]
[355086862,1740887504047,-500.0,0.00028721,2]
[355086864,1740887504057,-787.96,0.00028721,2]
[355086866,1740887504068,-500.0,0.00028721,2]
[355086868,1740887504077,-879.86,0.00028721,2]
[355086870,1740887504087,-511.59,0.00028721,2]
[355086872,1740887504097,-1331.9,0.00028721,2]
[355086874,1740887504107,-164.330266,0.00028721,7]
[355086876,1740887504117,-164.330266,0.00028721,7]
[355086878,1740887504127,-500.0,0.00028721,2]
[355086880,1740887504138,-500.0,0.00028721,2]
[355086882,1740887504148,-500.0,0.00028721,2]
[355086884,1740887504158,-2389.55,0.00028721,2]
[355086886,1740887504168,-1197.27,0.00028721,2]
[355086888,1740887504178,-1199.41,0.00028721,2]
[355086890,1740887504188,-800.95,0.00028722,2]
[355086892,1740887504199,-151.0,0.00028722,7]
[355086894,1740887504209,-595.63,0.00028722,2]
[355086896,1740887504219,-619.14,0.00028722,2]
[355086899,1740887504229,-696.73,0.00028722,2]
[355086901,1740887504239,-500.0,0.00028722,2]
[355086903,1740887504249,-827.74,0.00028722,2]
[355086905,1740887504260,-556.71,0.00028722,2]
[355086907,1740887504270,-645.31,0.00028722,2]
[355086909,1740887504281,-500.0,0.00028722,2]
[355086911,1740887504292,-546.83,0.00028722,2]
[355086913,1740887504302,-1197.2,0.00028722,2]
[355086916,1740887504312,-824.78,0.00028722,2]
[355086918,1740887504323,-510.26,0.00028722,2]
[355086920,1740887504333,-671.0,0.00028722,2]
[355086922,1740887504344,-1080.75,0.00028722,2]
[355086924,1740887504355,-500.0,0.00028722,2]
[355086926,1740887504365,-500.0,0.00028722,2]
[355086928,1740887504375,-998.88,0.00028722,2]
[355086930,1740887504385,-500.0,0.00028722,2]
[355086933,1740887504396,-1216.98,0.00028722,2]
[355086935,1740887504408,-658.58,0.00028722,2]
[355086937,1740887504418,-1583.32,0.00028722,2]
[355086939,1740887504428,-633.86,0.00028722,2]
[355086941,1740887504438,-500.0,0.00028722,2]
[355086943,1740887504448,-500.0,0.00028722,2]
[355086945,1740887504457,-903.21,0.00028722,2]
[355086947,1740887504467,-500.0,0.00028735,2]
[355086950,1740887504478,-154.9888434,0.00028767,30]
[355086952,1740887504490,-153.0,0.00028767,30]
[355086954,1740887504500,-150.0,0.00028812,14]
[355086956,1740887504510,-150.0,0.00028812,14]
[355086958,1740887504520,-150.0,0.00028842,2]
[355086960,1740887504530,-150.0,0.00028842,2]
[355086962,1740887504539,-397.0,0.00028842,2]
[355086964,1740887504550,-279.99087752,0.00028843,2]
[355086966,1740887504560,-576.55,0.00028896,2]
[355086968,1740887504569,-695.94,0.00028899,2]
[355086970,1740887504580,-464.40838204,0.00028899,2]
[355086973,1740887504590,-638.24,0.00028899,2]
[355086975,1740887504600,-512.29,0.00028899,2]
[355086977,1740887504614,-517.75,0.00028899,2]
[355086979,1740887504625,-555.95,0.00028899,2]
[355086981,1740887504635,-604.17,0.00028899,2]
[355086983,1740887504644,-535.38,0.00028899,2]
[355086985,1740887504655,-644.85,0.00028899,2]
[355086988,1740887504665,-1109.68,0.00028899,2]
[355086990,1740887504677,-239.86368523,0.00028899,2]
[355086992,1740887504689,-500.0,0.00028901,2]
[355086994,1740887504700,-3938.98,0.00028901,2]
[355086996,1740887504710,-1897.21,0.00028901,2]
[355086998,1740887504720,-814.94,0.00028901,2]
[355087000,1740887504730,-500.0,0.00028901,2]
[355087002,1740887504740,-582.56,0.00028901,2]
[355087004,1740887504751,-500.0,0.00028902,2]
[355087006,1740887504761,-606.5,0.00028902,2]
[355087009,1740887504771,-1398.67,0.00028902,2]
[355087011,1740887504782,-610.78,0.00028902,2]
[355087013,1740887504792,-500.0,0.00028902,2]
[355087015,1740887504803,-409.27477732,0.00028902,2]
[355087017,1740887504813,-722.78,0.00028902,2]
[355087019,1740887504823,-500.0,0.00028902,2]
[355087021,1740887504834,-1444.05,0.00028902,2]
[355087023,1740887504844,-1058.22,0.00028902,2]
[355087025,1740887504854,-1004.44,0.00028902,2]
[355087027,1740887504864,-699.97,0.00028902,2]
[355087029,1740887504875,-2209.6,0.00028902,2]
[355087031,1740887504885,-6855.05,0.00028902,2]
[355087033,1740887504895,-933.72,0.00028902,2]
[355087035,1740887504905,-612.38,0.00028902,2]
[355087037,1740887504915,-785.13,0.00028902,2]
[355087039,1740887504925,-829.6,0.00028902,2]
[355087041,1740887504935,-966.52,0.00028902,2]
[355087043,1740887504945,-895.37,0.00028902,2]
[355087045,1740887504956,-6949.16,0.00028902,2]
[355087048,1740887504966,-863.82,0.00028902,2]
[355087050,1740887504976,-4270.14,0.00028902,2]
[355087052,1740887504985,-1135.48,0.00028902,2]
[355087054,1740887504995,-637.67,0.00028902,2]
[355087056,1740887505005,-3293.1,0.00028902,2]
[355087058,1740887505016,-5348.24,0.00028902,2]
[355087060,1740887505026,-4549.77,0.00028902,2]
[355087062,1740887505037,-769.42,0.00028902,2]
[355087064,1740887505047,-500.0,0.00028902,2]
[355087066,1740887505057,-2567.41,0.00028902,2]
[355087068,1740887505068,-1086.26,0.00028902,2]
[355087070,1740887505078,-604.84,0.00028902,2]
[355087072,1740887505088,-7043.4,0.00028902,2]
[355087074,1740887505098,-786.15,0.00028902,2]
[355087076,1740887505107,-1576.77,0.00028902,2]
[355087078,1740887505117,-2514.1,0.00028902,2]
[355087080,1740887505127,-2961.51,0.00028902,2]
[355087082,1740887505137,-5947.3,0.00028902,2]
[355087084,1740887505147,-1198.18,0.00028902,2]
[355087086,1740887505157,-1870.92,0.00028902,2]
[355087088,1740887505167,-1004.96,0.00028902,2]
[355087090,1740887505176,-752.9,0.00028902,2]
[355087092,1740887505187,-90588.84,0.00028903,2]
[355087094,1740887505197,-1608.93,0.00028903,2]
[355087096,1740887505207,-917.51,0.00028903,2]
[355087098,1740887505217,-7853.56,0.00028903,2]
[355087100,1740887505227,-2071.45,0.00028903,2]
[355087102,1740887505237,-500.0,0.00028903,2]
[355087104,1740887505247,-2786.42,0.00028903,2]
[355087107,1740887505257,-584.33,0.00028903,2]
[355087108,1740887505266,-25446.5,0.00028903,2]
[355087111,1740887505276,-726.66,0.00028903,2]
[355087113,1740887505286,-1000.0,0.00028952,5]
[355087115,1740887505296,-414.53603163,0.00028995,2]
[355087117,1740887505307,-700.75,0.00028995,2]
[355087119,1740887505317,-509.21,0.00028995,2]
[355087121,1740887505327,-151.0,0.00028995,7]
[355087123,1740887505337,-511.51,0.00028995,2]
[355087125,1740887505348,-545.25,0.00028995,2]
[355087127,1740887505358,-984.68,0.00028995,2]
[355087156,1740887505636,-500.0,0.00028995,2]
[355087158,1740887505647,-487.79408317,0.00028995,2]
[355087160,1740887505657,-532.97,0.00028995,2]
[355087162,1740887505667,-500.0,0.00028995,2]
[355087164,1740887505676,-787.96,0.00028995,2]
[355087166,1740887505686,-500.0,0.00028995,2]
[355087168,1740887505696,-879.86,0.00028995,2]
[355087170,1740887505708,-511.59,0.00028995,2]
[355087172,1740887505717,-1331.9,0.00028995,2]
[355087174,1740887505727,-500.0,0.00028995,2]
[355087176,1740887505737,-500.0,0.00028995,2]
[355087178,1740887505746,-500.0,0.00028995,2]
[355087180,1740887505756,-2389.55,0.00028995,2]
[355087182,1740887505766,-1197.27,0.00028995,2]
[355087184,1740887505776,-1199.41,0.00028995,2]
[355087186,1740887505786,-800.95,0.00028996,2]
[355087188,1740887505796,-595.63,0.00028996,2]
[355087190,1740887505806,-619.14,0.00028996,2]
[355087192,1740887505815,-696.73,0.00028996,2]
[355087194,1740887505825,-500.0,0.00028996,2]
[355087196,1740887505835,-827.74,0.00028996,2]
[355087198,1740887505845,-556.71,0.00028996,2]
[355087200,1740887505856,-645.31,0.00028996,2]
[355087202,1740887505867,-436.87622989,0.00028996,2]
[355087204,1740887505877,-546.83,0.00028996,2]
[355087206,1740887505886,-1197.2,0.00028996,2]
[355087208,1740887505897,-824.78,0.00028996,2]
[355087210,1740887505907,-510.26,0.00028996,2]
[355087212,1740887505917,-671.0,0.00028996,2]
[355087214,1740887505927,-1080.75,0.00028996,2]
[355087216,1740887505937,-606.49967527,0.00028996,2]
[355087218,1740887505947,-500.0,0.00028996,2]
[355087221,1740887505959,-998.88,0.00028996,2]
[355087223,1740887505969,-500.0,0.00028996,2]
[355087225,1740887505979,-1216.98,0.00028996,2]
[355087227,1740887505989,-658.58,0.00028996,2]
[355087229,1740887506000,-1583.32,0.00028996,2]
[355087231,1740887506010,-633.86,0.00028996,2]
[355087233,1740887506020,-500.0,0.00028996,2]
[355087235,1740887506031,-500.0,0.00028996,2]
[355087237,1740887506041,-903.21,0.00028996,2]
[355087239,1740887506051,-866.20160669,0.00029,2]
[355087241,1740887506060,-604.67871979,0.00029,35]
[355087243,1740887506070,-5000.0,0.00029,2]
[355087245,1740887506080,-300.0,0.00029,3]
[355087247,1740887506090,-500.0,0.00029009,2]
[355087249,1740887506100,-25000.0,0.00029041,7]
[355087251,1740887506110,-1000.0,0.00029052,5]
[355087253,1740887506120,-1001.35403126,0.00029052,5]
[355087255,1740887506130,-1001.85153955,0.00029052,5]
[355087257,1740887506140,-1000.0,0.00029052,5]
[355087259,1740887506150,-1000.0,0.00029052,5]
[355087261,1740887506160,-1000.0,0.00029052,5]
[355087263,1740887506170,-154.54854771,0.00029052,5]
[355087265,1740887506180,-844.33537435,0.00029052,5]
[355087267,1740887506190,-417.34128565,0.00029052,2]
[355087270,1740887506200,-694.06866684,0.00029052,5]
[355087271,1740887506210,-1000.0,0.00029052,5]
[355087272,1740887506220,-1000.0,0.00029052,5]
[355087273,1740887506230,-500.52565708,0.00029052,5]
[355087274,1740887506240,-1000.0,0.00029052,5]
[355087275,1740887506249,-1000.0,0.00029052,5]
[355087276,1740887506259,-217.98251515,0.00029052,5]
[355087277,1740887506269,-271.23186131,0.00029052,5]
[355087278,1740887506278,-1000.0,0.00029052,5]
[355087279,1740887506288,-3201.2741002,0.00029118,4]
[355087280,1740887506298,-1000.0,0.00029152,3]
[355087281,1740887506308,-1000.0,0.00029152,5]
[355087282,1740887506317,-353.60124387,0.00029152,5]
[355087283,1740887506327,-1000.0,0.00029152,5]
[355087284,1740887506338,-1007.28877049,0.00029152,5]
[355087285,1740887506347,-1000.0,0.00029152,5]
[355087286,1740887506356,-1000.0,0.00029152,5]
[355087287,1740887506368,-1000.0,0.00029152,5]
[355087288,1740887506377,-1000.0,0.00029152,5]
[355087290,1740887506387,-401.95150697,0.00029152,5]
[355087292,1740887506397,-1000.0,0.00029152,5]
[355087294,1740887506407,-1000.0,0.00029152,5]
[355087296,1740887506417,-1000.0,0.00029152,5]
[355087298,1740887506427,-168.44822635,0.00029152,5]
[355087300,1740887506436,-576.55,0.0002917,2]
[355087302,1740887506446,-695.94,0.00029173,2]
[355087304,1740887506456,-638.24,0.00029173,2]
[355087306,1740887506466,-512.29,0.00029173,2]
[355087308,1740887506476,-517.75,0.00029173,2]
[355087310,1740887506485,-555.95,0.00029173,2]
[355087312,1740887506496,-604.17,0.00029173,2]
[355087314,1740887506506,-535.38,0.00029173,2]
[355087316,1740887506516,-644.85,0.00029173,2]
[355087318,1740887506526,-1109.68,0.00029173,2]
[355087320,1740887506536,-281.14971589,0.00029175,2]
[355087322,1740887506546,-3938.98,0.00029175,2]
[355087324,1740887506555,-1897.21,0.00029175,2]
[355087326,1740887506565,-814.94,0.00029175,2]
[355087328,1740887506575,-600.00037231,0.00029175,2]
[355087330,1740887506585,-582.56,0.00029175,2]
[355087332,1740887506595,-500.0,0.00029176,2]
[355087334,1740887506607,-606.5,0.00029176,2]
[355087337,1740887506619,-1398.67,0.00029176,2]
[355087339,1740887506630,-610.78,0.00029176,2]
[355087341,1740887506639,-500.0,0.00029176,2]
[355087343,1740887506650,-722.78,0.00029176,2]
[355087345,1740887506662,-345.23463025,0.00029176,2]
[355087347,1740887506672,-1444.05,0.00029176,2]
[355087349,1740887506683,-1058.22,0.00029176,2]
[355087350,1740887506692,-1004.44,0.00029176,2]
[355087352,1740887506703,-699.97,0.00029176,2]
[355087355,1740887506714,-2209.6,0.00029176,2]
[355087356,1740887506724,-6855.05,0.00029176,2]
[355087359,1740887506734,-933.72,0.00029176,2]
[355087360,1740887506744,-612.38,0.00029176,2]
[355087363,1740887506754,-785.13,0.00029176,2]
[355087364,1740887506763,-829.6,0.00029176,2]
[355087366,1740887506774,-966.52,0.00029176,2]
[355087368,1740887506783,-895.37,0.00029176,2]
[355087370,1740887506794,-6949.16,0.00029176,2]
[355087373,1740887506804,-863.82,0.00029176,2]
[355087375,1740887506814,-4270.14,0.00029176,2]
[355087377,1740887506824,-1135.48,0.00029176,2]
[355087378,1740887506834,-637.67,0.00029176,2]
[355087380,1740887506843,-3293.1,0.00029176,2]
[355087382,1740887506853,-5348.24,0.00029176,2]
[355087384,1740887506863,-4549.77,0.00029176,2]
[355087386,1740887506873,-769.42,0.00029176,2]
[355087388,1740887506883,-312.85939041,0.00029176,2]
[355087390,1740887506893,-2567.41,0.00029176,2]
[355087392,1740887506902,-1086.26,0.00029176,2]
[355087394,1740887506912,-604.84,0.00029176,2]
[355087396,1740887506922,-7043.4,0.00029176,2]
[355087398,1740887506931,-786.15,0.00029176,2]
[355087400,1740887506941,-1576.77,0.00029176,2]
[355087402,1740887506951,-2514.1,0.00029176,2]
[355087404,1740887506962,-2961.51,0.00029176,2]
[355087406,1740887506972,-5947.3,0.00029176,2]
[355087408,1740887506981,-1198.18,0.00029176,2]
[355087410,1740887506991,-1870.92,0.00029176,2]
[355087412,1740887507000,-1004.96,0.00029176,2]
[355087414,1740887507010,-752.9,0.00029176,2]
[355087416,1740887507020,-90588.84,0.00029177,2]
[355087418,1740887507029,-1608.93,0.00029177,2]
[355087420,1740887507039,-917.51,0.00029177,2]
[355087422,1740887507049,-7853.56,0.00029177,2]
[355087424,1740887507059,-2071.45,0.00029177,2]
[355087426,1740887507070,-500.0,0.00029177,2]
[355087428,1740887507080,-2786.42,0.00029177,2]
[355087430,1740887507089,-584.33,0.00029177,2]
[355087432,1740887507099,-25446.5,0.00029177,2]
[355087434,1740887507108,-726.66,0.00029177,2]
[355087436,1740887507118,-1000.0,0.00029252,5]
[355087438,1740887507127,-507.2184433,0.00029252,5]
[355087440,1740887507137,-1000.0,0.00029252,5]
[355087442,1740887507147,-504.4974225,0.00029252,5]
[355087444,1740887507156,-700.75,0.00029269,2]
[355087446,1740887507166,-509.21,0.00029269,2]
[355087448,1740887507176,-511.51,0.00029269,2]
[355087450,1740887507187,-545.25,0.00029269,2]
[355087452,1740887507196,-984.68,0.00029269,2]
[355087454,1740887507206,-243.30524857,0.00029269,2]
[355087456,1740887507216,-532.97,0.00029269,2]
[355087459,1740887507227,-245.37580156,0.00029269,2]
[355087461,1740887507236,-787.96,0.00029269,2]
[355087462,1740887507245,-500.0,0.00029269,2]
[355087465,1740887507256,-879.86,0.00029269,2]
[355087466,1740887507266,-511.59,0.00029269,2]
[355087468,1740887507276,-1331.9,0.00029269,2]
[355087470,1740887507285,-500.0,0.00029269,2]
[355087473,1740887507295,-500.0,0.00029269,2]
[355087475,1740887507305,-500.0,0.00029269,2]
[355087477,1740887507315,-2389.55,0.00029269,2]
[355087479,1740887507324,-1197.27,0.00029269,2]
[355087480,1740887507335,-1199.41,0.00029269,2]
[355087482,1740887507344,-170.4,0.0002927,120]
[355087485,1740887507354,-800.95,0.0002927,2]
[355087486,1740887507363,-595.63,0.0002927,2]
[355087489,1740887507374,-619.14,0.0002927,2]
[355087491,1740887507383,-696.73,0.0002927,2]
[355087493,1740887507393,-500.0,0.0002927,2]
[355087494,1740887507402,-827.74,0.0002927,2]
[355087496,1740887507412,-556.71,0.0002927,2]
[355087498,1740887507422,-645.31,0.0002927,2]
[355087500,1740887507431,-546.83,0.0002927,2]
[355087502,1740887507441,-1197.2,0.0002927,2]
[355087504,1740887507451,-824.78,0.0002927,2]
[355087507,1740887507462,-510.26,0.0002927,2]
[355087509,1740887507472,-671.0,0.0002927,2]
[355087511,1740887507482,-1080.75,0.0002927,2]
[355087513,1740887507492,-205.00512166,0.0002927,2]
[355087515,1740887507502,-998.88,0.0002927,2]
[355087517,1740887507511,-500.0,0.0002927,2]
[355087519,1740887507522,-1216.98,0.0002927,2]
[355087521,1740887507532,-658.58,0.0002927,2]
[355087523,1740887507541,-1583.32,0.0002927,2]
[355087525,1740887507550,-633.86,0.0002927,2]
[355087527,1740887507559,-589.57652593,0.0002927,2]
[355087529,1740887507569,-500.0,0.0002927,2]
[355087531,1740887507579,-903.21,0.0002927,2]
[355087533,1740887507588,-150.5,0.0002928,120]
[355087535,1740887507598,-157.5499315,0.00029283,2]
[355087537,1740887507610,-150.5,0.0002929,120]
[355087539,1740887507620,-2988.0,0.000294,14]
[355087541,1740887507631,-576.55,0.00029444,2]
[355087543,1740887507641,-695.94,0.00029447,2]
[355087545,1740887507652,-638.24,0.00029447,2]
[355087547,1740887507661,-512.29,0.00029447,2]
[355087549,1740887507671,-517.75,0.00029447,2]
[355087551,1740887507683,-555.95,0.00029447,2]
[355087553,1740887507692,-604.17,0.00029447,2]
[355087555,1740887507702,-535.38,0.00029447,2]
[355087557,1740887507712,-644.85,0.00029447,2]
[355087559,1740887507721,-1109.68,0.00029447,2]
[355087561,1740887507731,-183.894362,0.00029447,7]
[355087563,1740887507742,-183.894362,0.00029447,7]
[355087565,1740887507752,-3938.98,0.00029449,2]
[355087567,1740887507761,-1897.21,0.00029449,2]
[355087569,1740887507771,-814.94,0.00029449,2]
[355087571,1740887507780,-582.56,0.00029449,2]
[355087573,1740887507790,-358.57637591,0.0002945,2]
[355087575,1740887507800,-606.5,0.0002945,2]
[355087577,1740887507810,-1398.67,0.0002945,2]
[355087579,1740887507820,-610.78,0.0002945,2]
[355087581,1740887507829,-570.37225981,0.0002945,2]
[355087583,1740887507840,-722.78,0.0002945,2]
[355087585,1740887507849,-1444.05,0.0002945,2]
[355087587,1740887507859,-1058.22,0.0002945,2]
[355087589,1740887507868,-1004.44,0.0002945,2]
[355087591,1740887507878,-699.97,0.0002945,2]
[355087593,1740887507887,-2209.6,0.0002945,2]
[355087595,1740887507897,-6855.05,0.0002945,2]
[355087597,1740887507907,-933.72,0.0002945,2]
[355087599,1740887507916,-612.38,0.0002945,2]
[355087601,1740887507925,-785.13,0.0002945,2]
[355087603,1740887507935,-829.6,0.0002945,2]
[355087605,1740887507945,-966.52,0.0002945,2]
[355087607,1740887507954,-895.37,0.0002945,2]
[355087610,1740887507964,-6949.16,0.0002945,2]
[355087612,1740887507974,-863.82,0.0002945,2]
[355087614,1740887507984,-4270.14,0.0002945,2]
[355087623,1740887508062,-1135.48,0.0002945,2]
[355087625,1740887508073,-637.67,0.0002945,2]
[355087627,1740887508085,-3293.1,0.0002945,2]
[355087630,1740887508095,-5348.24,0.0002945,2]
[355087632,1740887508105,-151.0,0.0002945,7]
[355087634,1740887508115,-151.0,0.0002945,7]
[355087635,1740887508135,-4549.77,0.0002945,2]
[355087637,1740887508144,-769.42,0.0002945,2]
[355087640,1740887508154,-2567.41,0.0002945,2]
[355087642,1740887508163,-1086.26,0.0002945,2]
[355087643,1740887508172,-604.84,0.0002945,2]
[355087645,1740887508181,-7043.4,0.0002945,2]
[355087647,1740887508191,-786.15,0.0002945,2]
[355087649,1740887508201,-1576.77,0.0002945,2]
[355087651,1740887508211,-2514.1,0.0002945,2]
[355087653,1740887508220,-2961.51,0.0002945,2]
[355087655,1740887508230,-5947.3,0.0002945,2]
[355087657,1740887508239,-1198.18,0.0002945,2]
[355087659,1740887508249,-1870.92,0.0002945,2]
[355087661,1740887508258,-1004.96,0.0002945,2]
[355087663,1740887508267,-752.9,0.0002945,2]
[355087665,1740887508277,-90588.84,0.00029451,2]
[355087667,1740887508286,-1608.93,0.00029451,2]
[355087669,1740887508296,-917.51,0.00029451,2]
[355087671,1740887508305,-7853.56,0.00029451,2]
[355087673,1740887508315,-2071.45,0.00029451,2]
[355087675,1740887508325,-330.73462081,0.00029451,2]
[355087677,1740887508334,-2786.42,0.00029451,2]